fUSD/lending_fUSD_20260505
["ID","MTS","AMOUNT","RATE_DAILY","PERIOD"]
[421591670,1777938672000,-343.43246004,0.00041095,120]
[421591698,1777938672000,-500.0,0.00041095,120]
[421591699,1777938672000,-500.0,0.00041095,120]
[421591684,1777938672000,-500.0,0.00041095,120]
[421591695,1777938672000,-500.0,0.00041095,120]
[421591697,1777938672000,-500.0,0.00041095,120]
[421591692,1777938672000,-531.49142828,0.00041095,120]
[421591691,1777938672000,-500.0,0.00041095,120]
[421591686,1777938672000,-500.0,0.00041095,120]
[421591682,1777938672000,-500.0,0.00041095,120]
[421591689,1777938672000,-500.0,0.00041095,120]
[421591687,1777938672000,-500.0,0.00041095,120]
[421591690,1777938672000,-500.0,0.00041095,120]
[421591685,1777938672000,-506.44,0.00041095,120]
[421591688,1777938672000,-699.56,0.00041095,120]
[421591781,1777938673000,-500.0,0.00041095,120]
[421591770,1777938673000,-500.0,0.00041095,120]
[421591772,1777938673000,-500.0,0.00041095,120]
[421591783,1777938673000,-500.0,0.00041095,120]
[421591777,1777938673000,-390.11991009,0.00041095,120]
[421591771,1777938673000,-500.0,0.00041095,120]
[421591760,1777938673000,-500.0,0.00041095,120]
[421591768,1777938673000,-500.0,0.00041095,120]
[421591767,1777938673000,-500.0,0.00041095,120]
[421591766,1777938673000,-500.0,0.00041095,120]
[421591765,1777938673000,-511.52619802,0.00041095,120]
[421591775,1777938673000,-270.79636952,0.00041095,120]
[421591769,1777938673000,-500.0,0.00041095,120]
[421591782,1777938673000,-279.44763515,0.00041095,120]
[421591788,1777938673000,-500.0,0.00041095,120]
[421591774,1777938673000,-500.0,0.00041095,120]
[421591779,1777938673000,-500.0,0.00041095,120]
[421591780,1777938673000,-500.0,0.00041095,120]
[421591778,1777938673000,-500.0,0.00041095,120]
[421591776,1777938673000,-500.0,0.00041095,120]
[421591785,1777938673000,-537.83135592,0.00041095,120]
[421591795,1777938673000,-500.0,0.00041095,120]
[421591784,1777938673000,-500.0,0.00041095,120]
[421591786,1777938673000,-298.72382635,0.00041095,120]
[421591796,1777938673000,-310.01476218,0.00041095,60]
[421591787,1777938673000,-500.0,0.00041095,120]
[421591791,1777938673000,-569.37,0.00041095,120]
[421591764,1777938673000,-500.0,0.00041095,120]
[421591773,1777938673000,-336.59506229,0.00041095,120]
[421591763,1777938673000,-500.0,0.00041095,120]
[421591732,1777938673000,-500.0,0.00041095,120]
[421591761,1777938673000,-500.0,0.00041095,120]
[421591790,1777938673000,-500.0,0.00041095,120]
[421591733,1777938673000,-500.0,0.00041095,120]
[421591730,1777938673000,-500.0,0.00041095,120]
[421591731,1777938673000,-500.0,0.00041095,120]
[421591735,1777938673000,-500.0,0.00041095,120]
[421591746,1777938673000,-1415.03,0.00041095,120]
[421591745,1777938673000,-433.38559382,0.00041095,120]
[421591734,1777938673000,-543.68619862,0.00041095,120]
[421591736,1777938673000,-500.0,0.00041095,120]
[421591739,1777938673000,-500.0,0.00041095,120]
[421591737,1777938673000,-500.0,0.00041095,120]
[421591738,1777938673000,-500.0,0.00041095,120]
[421591743,1777938673000,-500.0,0.00041095,120]
[421591744,1777938673000,-500.0,0.00041095,120]
[421591740,1777938673000,-500.0,0.00041095,120]
[421591741,1777938673000,-500.0,0.00041095,120]
[421591742,1777938673000,-397.75400681,0.00041095,120]
[421591747,1777938673000,-500.0,0.00041095,120]
[421591750,1777938673000,-500.0,0.00041095,120]
[421591749,1777938673000,-500.0,0.00041095,120]
[421591751,1777938673000,-500.0,0.00041095,120]
[421591752,1777938673000,-500.0,0.00041095,120]
[421591748,1777938673000,-500.0,0.00041095,120]
[421591759,1777938673000,-500.0,0.00041095,120]
[421591754,1777938673000,-371.53519852,0.00041095,120]
[421591758,1777938673000,-347.1373607,0.00041095,120]
[421591755,1777938673000,-500.0,0.00041095,120]
[421591756,1777938673000,-562.44,0.00041095,120]
[421591757,1777938673000,-374.36089039,0.00041095,120]
[421591762,1777938673000,-500.0,0.00041095,120]
[421591792,1777938673000,-355.25637869,0.00041095,120]
[421591753,1777938673000,-500.0,0.00041095,120]
[421591794,1777938673000,-500.0,0.00041095,120]
[421591825,1777938673000,-500.0,0.00041095,120]
[421591832,1777938673000,-500.0,0.00041095,120]
[421591857,1777938673000,-500.0,0.00041095,120]
[421591829,1777938673000,-500.0,0.00041095,120]
[421591827,1777938673000,-298.28868032,0.00041095,120]
[421591831,1777938673000,-500.0,0.00041095,120]
[421591833,1777938673000,-500.0,0.00041095,120]
[421591830,1777938673000,-231.50429922,0.00041095,120]
[421591828,1777938673000,-500.0,0.00041095,120]
[421591837,1777938673000,-500.0,0.00041095,120]
[421591840,1777938673000,-500.0,0.00041095,120]
[421591844,1777938673000,-500.0,0.00041095,120]
[421591846,1777938673000,-500.0,0.00041095,120]
[421591838,1777938673000,-500.0,0.00041095,60]
[421591847,1777938673000,-500.0,0.00041095,120]
[421591843,1777938673000,-500.0,0.00041095,120]
[421591848,1777938673000,-1009.55002204,0.00041095,120]
[421591841,1777938673000,-326.93414427,0.00041095,120]
[421591839,1777938673000,-500.0,0.00041095,120]
[421591845,1777938673000,-500.0,0.00041095,120]
[421591842,1777938673000,-514.29,0.00041095,120]
[421591849,1777938673000,-500.0,0.00041095,120]
[421591851,1777938673000,-500.0,0.00041095,120]
[421591852,1777938673000,-307.85006692,0.00041095,120]
[421591850,1777938673000,-220.31750455,0.00041095,120]
[421591853,1777938673000,-600.64,0.00041095,120]
[421591854,1777938673000,-500.0,0.00041095,120]
[421591855,1777938673000,-392.26168037,0.00041095,120]
[421591789,1777938673000,-500.0,0.00041095,120]
[421591823,1777938673000,-500.0,0.00041095,120]
[421591826,1777938673000,-500.0,0.00041095,120]
[421591856,1777938673000,-500.0,0.00041095,30]
[421591824,1777938673000,-500.0,0.00041095,120]
[421591835,1777938673000,-393.71865531,0.00041095,120]
[421591793,1777938673000,-609.16456189,0.00041095,120]
[421591806,1777938673000,-318.55904277,0.00041095,120]
[421591803,1777938673000,-500.0,0.00041095,120]
[421591805,1777938673000,-500.0,0.00041095,120]
[421591797,1777938673000,-268.12793656,0.00041095,120]
[421591807,1777938673000,-500.0,0.00041095,120]
[421591798,1777938673000,-500.0,0.00041095,120]
[421591799,1777938673000,-500.0,0.00041095,120]
[421591800,1777938673000,-500.0,0.00041095,120]
[421591804,1777938673000,-500.0,0.00041095,120]
[421591801,1777938673000,-500.0,0.00041095,120]
[421591802,1777938673000,-324.41163505,0.00041095,120]
[421591809,1777938673000,-500.0,0.00041095,120]
[421591808,1777938673000,-500.0,0.00041095,120]
[421591816,1777938673000,-500.83,0.00041095,120]
[421591810,1777938673000,-173.68830138,0.00041095,120]
[421591836,1777938673000,-500.0,0.00041095,120]
[421591814,1777938673000,-500.0,0.00041095,120]
[421591820,1777938673000,-316.36435323,0.00041095,120]
[421591815,1777938673000,-738.47,0.00041095,120]
[421591813,1777938673000,-251.4187494,0.00041095,120]
[421591818,1777938673000,-500.0,0.00041095,120]
[421591812,1777938673000,-500.0,0.00041095,120]
[421591822,1777938673000,-500.0,0.00041095,120]
[421591819,1777938673000,-513.16,0.00041095,120]
[421591811,1777938673000,-500.0,0.00041095,120]
[421591834,1777938673000,-500.0,0.00041095,120]
[421591821,1777938673000,-500.0,0.00041095,120]
[421591817,1777938673000,-295.70974,0.00041095,120]
[421591895,1777938674000,-500.0,0.00041095,120]
[421591887,1777938674000,-617.91,0.00041095,120]
[421591890,1777938674000,-500.0,0.00041095,120]
[421591900,1777938674000,-500.0,0.00041095,120]
[421591891,1777938674000,-500.0,0.00041095,120]
[421591892,1777938674000,-500.0,0.00041095,120]
[421591898,1777938674000,-500.0,0.00041095,120]
[421591893,1777938674000,-500.0,0.00041095,120]
[421591894,1777938674000,-782.2,0.00041095,120]
[421591896,1777938674000,-500.0,0.00041095,120]
[421591889,1777938674000,-164.03353815,0.00041095,120]
[421591901,1777938674000,-500.0,0.00041095,120]
[421591913,1777938674000,-500.0,0.00041095,120]
[421591899,1777938674000,-500.0,0.00041095,120]
[421591911,1777938674000,-500.0,0.00041095,120]
[421591902,1777938674000,-500.0,0.00041095,120]
[421591912,1777938674000,-500.0,0.00041095,120]
[421591903,1777938674000,-500.0,0.00041095,120]
[421591909,1777938674000,-500.0,0.00041095,120]
[421591907,1777938674000,-500.0,0.00041095,120]
[421591905,1777938674000,-500.0,0.00041095,120]
[421591906,1777938674000,-500.0,0.00041095,120]
[421591904,1777938674000,-500.0,0.00041095,120]
[421591888,1777938674000,-500.0,0.00041095,120]
[421591908,1777938674000,-500.0,0.00041095,120]
[421591897,1777938674000,-500.0,0.00041095,120]
[421591886,1777938674000,-500.0,0.00041095,120]
[421591863,1777938674000,-500.0,0.00041095,120]
[421591880,1777938674000,-522.02105805,0.00041095,120]
[421591910,1777938674000,-500.0,0.00041095,120]
[421591861,1777938674000,-359.22704131,0.00041095,120]
[421591860,1777938674000,-500.0,0.00041095,120]
[421591859,1777938674000,-500.0,0.00041095,120]
[421591858,1777938674000,-312.35617719,0.00041095,120]
[421591862,1777938674000,-500.0,0.00041095,120]
[421591864,1777938674000,-500.0,0.00041095,120]
[421591865,1777938674000,-500.0,0.00041095,120]
[421591867,1777938674000,-500.0,0.00041095,120]
[421591870,1777938674000,-539.94,0.00041095,120]
[421591868,1777938674000,-500.0,0.00041095,120]
[421591869,1777938674000,-500.0,0.00041095,120]
[421591878,1777938674000,-500.0,0.00041095,120]
[421591872,1777938674000,-500.0,0.00041095,120]
[421591873,1777938674000,-500.0,0.00041095,120]
[421591871,1777938674000,-231.68378409,0.00041095,120]
[421591875,1777938674000,-500.0,0.00041095,120]
[421591885,1777938674000,-590.28972724,0.00041095,120]
[421591874,1777938674000,-381.50669336,0.00041095,90]
[421591883,1777938674000,-500.0,0.00041095,120]
[421591877,1777938674000,-271.54961063,0.00041095,120]
[421591884,1777938674000,-500.0,0.00041095,120]
[421591881,1777938674000,-500.0,0.00041095,120]
[421591882,1777938674000,-500.0,0.00041095,120]
[421591879,1777938674000,-500.0,0.00041095,120]
[421591876,1777938674000,-500.0,0.00041095,120]
[421591866,1777938674000,-500.0,0.00041095,120]
[421591923,1777938674000,-500.0,0.00041095,120]
[421591924,1777938674000,-500.0,0.00041095,120]
[421591925,1777938674000,-500.0,0.00041095,120]
[421591946,1777938674000,-500.0,0.00041095,120]
[421591952,1777938674000,-554.39,0.00041095,120]
[421591941,1777938674000,-500.0,0.00041095,120]
[421591949,1777938674000,-419.42726332,0.00041095,120]
[421591948,1777938674000,-500.0,0.00041095,120]
[421591950,1777938674000,-500.0,0.00041095,120]
[421591954,1777938674000,-161.67610989,0.00041095,120]
[421591965,1777938674000,-500.0,0.00041095,120]
[421591964,1777938674000,-500.0,0.00041095,120]
[421591953,1777938674000,-524.50288898,0.00041095,2]
[421591966,1777938674000,-221.93165232,0.00041095,120]
[421591957,1777938674000,-500.0,0.00041095,120]
[421591959,1777938674000,-760.4,0.00041095,120]
[421591956,1777938674000,-161.70962675,0.00041095,120]
[421591961,1777938674000,-158.25860076,0.00041095,120]
[421591960,1777938674000,-500.0,0.00041095,120]
[421591962,1777938674000,-542.72,0.00041095,120]
[421591963,1777938674000,-500.0,0.00041095,120]
[421591958,1777938674000,-1148.79,0.00041095,120]
[421591967,1777938674000,-500.0,0.00041095,120]
[421591969,1777938674000,-187.77086659,0.00041095,120]
[421591970,1777938674000,-500.0,0.00041095,120]
[421591968,1777938674000,-500.0,0.00041095,120]
[421591971,1777938674000,-500.0,0.00041095,120]
[421591972,1777938674000,-2743.4,0.00041095,120]
[421591947,1777938674000,-372.05825075,0.00041095,120]
[421591951,1777938674000,-639.5,0.00041095,120]
[421591955,1777938674000,-501.35134871,0.00041095,120]
[421591945,1777938674000,-500.0,0.00041095,120]
[421591927,1777938674000,-500.0,0.00041095,120]
[421591944,1777938674000,-500.0,0.00041095,120]
[421591915,1777938674000,-249.90164699,0.00041095,120]
[421591917,1777938674000,-500.0,0.00041095,120]
[421591916,1777938674000,-516.8116559,0.00041095,120]
[421591926,1777938674000,-500.0,0.00041095,120]
[421591914,1777938674000,-500.0,0.00041095,120]
[421591919,1777938674000,-500.0,0.00041095,120]
[421591918,1777938674000,-500.0,0.00041095,120]
[421591922,1777938674000,-500.0,0.00041095,120]
[421591920,1777938674000,-500.0,0.00041095,120]
[421591929,1777938674000,-500.0,0.00041095,120]
[421591939,1777938674000,-550.71,0.00041095,120]
[421591921,1777938674000,-500.0,0.00041095,120]
[421591928,1777938674000,-500.0,0.00041095,120]
[421591943,1777938674000,-405.99307547,0.00041095,120]
[421591940,1777938674000,-596.0433804,0.00041095,120]
[421591936,1777938674000,-500.0,0.00041095,120]
[421591937,1777938674000,-500.0,0.00041095,120]
[421591933,1777938674000,-500.0,0.00041095,120]
[421591934,1777938674000,-500.0,0.00041095,120]
[421591942,1777938674000,-500.0,0.00041095,120]
[421591938,1777938674000,-500.0,0.00041095,120]
[421591930,1777938674000,-500.0,0.00041095,120]
[421591931,1777938674000,-500.0,0.00041095,120]
[421591932,1777938674000,-500.0,0.00041095,120]
[421591935,1777938674000,-500.0,0.00041095,120]
[421592016,1777938675000,-500.0,0.00041095,120]
[421592009,1777938675000,-278.34701983,0.00041095,120]
[421592012,1777938675000,-500.0,0.00041095,120]
[421592014,1777938675000,-280.91121312,0.00041095,120]
[421592013,1777938675000,-500.0,0.00041095,120]
[421592015,1777938675000,-500.0,0.00041095,120]
[421592011,1777938675000,-500.0,0.00041095,120]
[421592008,1777938675000,-500.0,0.00041095,120]
[421592006,1777938675000,-500.0,0.00041095,120]
[421592017,1777938675000,-500.0,0.00041095,120]
[421592007,1777938675000,-500.0,0.00041095,120]
[421592018,1777938675000,-2061.71,0.00041095,120]
[421592010,1777938675000,-500.0,0.00041095,120]
[421592030,1777938675000,-500.0,0.00041095,120]
[421592027,1777938675000,-274.07781285,0.00041095,120]
[421592020,1777938675000,-500.0,0.00041095,120]
[421592031,1777938675000,-500.0,0.00041095,120]
[421592019,1777938675000,-500.0,0.00041095,120]
[421592022,1777938675000,-500.0,0.00041095,120]
[421592021,1777938675000,-1783.47,0.00041095,120]
[421592023,1777938675000,-500.0,0.00041095,120]
[421592024,1777938675000,-500.0,0.00041095,120]
[421592025,1777938675000,-371.29850736,0.00041095,120]
[421592029,1777938675000,-500.0,0.00041095,120]
[421592028,1777938675000,-529.19241237,0.00041095,120]
[421592026,1777938675000,-501.14093538,0.00041095,120]
[421592033,1777938675000,-500.0,0.00041095,120]
[421592005,1777938675000,-597.53509691,0.00041095,120]
[421592032,1777938675000,-500.0,0.00041095,120]
[421592001,1777938675000,-500.0,0.00041095,120]
[421591973,1777938675000,-500.0,0.00041095,120]
[421592002,1777938675000,-500.0,0.00041095,120]
[421591979,1777938675000,-500.0,0.00041095,120]
[421591978,1777938675000,-500.0,0.00041095,120]
[421591974,1777938675000,-500.0,0.00041095,120]
[421592043,1777938675000,-500.0,0.00041095,120]
[421591975,1777938675000,-500.0,0.00041095,120]
[421591976,1777938675000,-500.0,0.00041095,120]
[421591977,1777938675000,-2616.79,0.00041095,120]
[421591981,1777938675000,-298.8748823,0.00041095,120]
[421591980,1777938675000,-500.0,0.00041095,120]
[421591984,1777938675000,-500.0,0.00041095,120]
[421591983,1777938675000,-500.0,0.00041095,120]
[421591991,1777938675000,-525.08,0.00041095,120]
[421591985,1777938675000,-500.0,0.00041095,120]
[421592003,1777938675000,-500.0,0.00041095,120]
[421591982,1777938675000,-500.0,0.00041095,120]
[421591990,1777938675000,-504.16961071,0.00041095,120]
[421591987,1777938675000,-500.0,0.00041095,120]
[421591989,1777938675000,-500.0,0.00041095,120]
[421591988,1777938675000,-500.0,0.00041095,120]
[421591993,1777938675000,-500.0,0.00041095,120]
[421591995,1777938675000,-500.0,0.00041095,120]
[421591999,1777938675000,-500.0,0.00041095,120]
[421591997,1777938675000,-500.0,0.00041095,120]
[421592004,1777938675000,-500.0,0.00041095,120]
[421591998,1777938675000,-200.0,0.00041095,120]
[421591996,1777938675000,-250.35610027,0.00041095,120]
[421591994,1777938675000,-551.61,0.00041095,120]
[421592000,1777938675000,-152.56284539,0.00041095,120]
[421591986,1777938675000,-500.0,0.00041095,120]
[421592035,1777938675000,-500.0,0.00041095,120]
[421591992,1777938675000,-500.0,0.00041095,120]
[421592042,1777938675000,-500.0,0.00041095,120]
[421592075,1777938675000,-500.0,0.00041095,5]
[421592073,1777938675000,-238.15158668,0.00041095,120]
[421592069,1777938675000,-500.0,0.00041095,120]
[421592077,1777938675000,-500.0,0.00041095,120]
[421592070,1777938675000,-500.0,0.00041095,120]
[421592076,1777938675000,-305.31229778,0.00041095,120]
[421592074,1777938675000,-500.0,0.00041095,120]
[421592080,1777938675000,-229.78897866,0.00041095,120]
[421592072,1777938675000,-585.21755243,0.00041095,120]
[421592079,1777938675000,-1111.02,0.00041095,120]
[421592082,1777938675000,-316.88919748,0.00041095,120]
[421592084,1777938675000,-502.12328273,0.00041095,120]
[421592092,1777938675000,-423.9568749,0.00041095,120]
[421592078,1777938675000,-500.0,0.00041095,120]
[421592093,1777938675000,-279.42746135,0.00041095,120]
[421592083,1777938675000,-500.0,0.00041095,120]
[421592085,1777938675000,-593.7,0.00041095,120]
[421592081,1777938675000,-261.1320393,0.00041095,120]
[421592086,1777938675000,-682.65,0.00041095,120]
[421592090,1777938675000,-500.0,0.00041095,120]
[421592091,1777938675000,-500.0,0.00041095,120]
[421592089,1777938675000,-500.0,0.00041095,120]
[421592087,1777938675000,-500.0,0.00041095,120]
[421592088,1777938675000,-500.0,0.00041095,120]
[421592095,1777938675000,-395.60673979,0.00041095,120]
[421592098,1777938675000,-500.0,0.00041095,120]
[421592097,1777938675000,-500.0,0.00041095,120]
[421592034,1777938675000,-500.0,0.00041095,120]
[421592094,1777938675000,-190.7478228,0.00041095,120]
[421592071,1777938675000,-500.0,0.00041095,120]
[421592096,1777938675000,-500.0,0.00041095,120]
[421592065,1777938675000,-500.0,0.00041095,120]
[421592068,1777938675000,-558.71946955,0.00041095,120]
[421592038,1777938675000,-500.0,0.00041095,120]
[421592040,1777938675000,-187.04840206,0.00041095,120]
[421592039,1777938675000,-334.32131319,0.00041095,120]
[421592041,1777938675000,-368.76049151,0.00041095,120]
[421592036,1777938675000,-424.02873268,0.00041095,120]
[421592045,1777938675000,-500.0,0.00041095,120]
[421592044,1777938675000,-500.0,0.00041095,120]
[421592054,1777938675000,-500.0,0.00041095,120]
[421592055,1777938675000,-500.0,0.00041095,120]
[421592053,1777938675000,-500.0,0.00041095,120]
[421592046,1777938675000,-413.11819211,0.00041095,120]
[421592047,1777938675000,-603.64770219,0.00041095,120]
[421592052,1777938675000,-500.0,0.00041095,120]
[421592037,1777938675000,-527.86,0.00041095,120]
[421592050,1777938675000,-454.41623187,0.00041095,120]
[421592062,1777938675000,-1185.59,0.00041095,120]
[421592049,1777938675000,-525.03,0.00041095,120]
[421592060,1777938675000,-500.0,0.00041095,120]
[421592064,1777938675000,-500.0,0.00041095,120]
[421592061,1777938675000,-550.98,0.00041095,120]
[421592066,1777938675000,-500.0,0.00041095,120]
[421592063,1777938675000,-209.97116262,0.00041095,120]
[421592058,1777938675000,-500.0,0.00041095,120]
[421592067,1777938675000,-500.0,0.00041095,120]
[421592059,1777938675000,-218.83182251,0.00041095,120]
[421592057,1777938675000,-500.0,0.00041095,120]
[421592051,1777938675000,-367.49707919,0.00041095,120]
[421592048,1777938675000,-628.61120431,0.00041095,120]
[421592056,1777938675000,-359.89339537,0.00041095,120]
[421592134,1777938676000,-500.0,0.00041095,120]
[421592140,1777938676000,-500.0,0.00041095,120]
[421592138,1777938676000,-500.0,0.00041095,120]
[421592137,1777938676000,-251.32985938,0.00041095,120]
[421592136,1777938676000,-500.0,0.00041095,120]
[421592143,1777938676000,-500.0,0.00041095,120]
[421592132,1777938676000,-500.0,0.00041095,120]
[421592144,1777938676000,-577.42751677,0.00041095,120]
[421592142,1777938676000,-500.0,0.00041095,120]
[421592128,1777938676000,-500.0,0.00041095,120]
[421592139,1777938676000,-526.93,0.00041095,120]
[421592133,1777938676000,-500.0,0.00041095,120]
[421592146,1777938676000,-500.0,0.00041095,120]
[421592141,1777938676000,-500.0,0.00041095,120]
[421592145,1777938676000,-266.90509635,0.00041095,120]
[421592147,1777938676000,-500.0,0.00041095,120]
[421592148,1777938676000,-227.39196537,0.00041095,120]
[421592150,1777938676000,-500.0,0.00041095,120]
[421592157,1777938676000,-501.90987008,0.00041095,120]
[421592149,1777938676000,-236.25424068,0.00041095,120]
[421592155,1777938676000,-500.0,0.00041095,120]
[421592156,1777938676000,-396.2402606,0.00041095,120]
[421592151,1777938676000,-500.0,0.00041095,120]
[421592152,1777938676000,-500.0,0.00041095,120]
[421592130,1777938676000,-500.0,0.00041095,120]
[421592154,1777938676000,-500.0,0.00041095,120]
[421592135,1777938676000,-500.0,0.00041095,120]
[421592129,1777938676000,-500.0,0.00041095,120]
[421592115,1777938676000,-559.24421524,0.00041095,120]
[421592124,1777938676000,-235.56347052,0.00041095,120]
[421592153,1777938676000,-500.0,0.00041095,120]
[421592102,1777938676000,-500.0,0.00041095,120]
[421592099,1777938676000,-500.0,0.00041095,120]
[421592100,1777938676000,-500.0,0.00041095,120]
[421592101,1777938676000,-500.0,0.00041095,120]
[421592105,1777938676000,-500.0,0.00041095,120]
[421592103,1777938676000,-628.47496959,0.00041095,120]
[421592106,1777938676000,-486.77989967,0.00041095,120]
[421592104,1777938676000,-500.0,0.00041095,120]
[421592107,1777938676000,-165.54057899,0.00041095,120]
[421592109,1777938676000,-500.0,0.00041095,120]
[421592113,1777938676000,-689.15,0.00041095,120]
[421592110,1777938676000,-500.0,0.00041095,120]
[421592112,1777938676000,-426.3037428,0.00041095,120]
[421592117,1777938676000,-500.0,0.00041095,120]
[421592116,1777938676000,-196.96245649,0.00041095,120]
[421592111,1777938676000,-225.60168627,0.00041095,120]
[421592114,1777938676000,-163.91200633,0.00041095,120]
[421592118,1777938676000,-500.0,0.00041095,120]
[421592122,1777938676000,-188.70261812,0.00041095,120]
[421592120,1777938676000,-221.73456873,0.00041095,120]
[421592121,1777938676000,-500.0,0.00041095,120]
[421592123,1777938676000,-500.0,0.00041095,120]
[421592119,1777938676000,-548.93252658,0.00041095,120]
[421592127,1777938676000,-389.66075935,0.00041095,120]
[421592125,1777938676000,-3866.31,0.00041095,2]
[421592126,1777938676000,-630.09984795,0.00041095,120]
[421592131,1777938676000,-500.0,0.00041095,120]
[421592159,1777938676000,-500.0,0.00041095,120]
[421592108,1777938676000,-500.0,0.00041095,120]
[421592161,1777938676000,-221.73478207,0.00041095,120]
[421592190,1777938676000,-500.0,0.00041095,11]
[421592191,1777938676000,-500.0,0.00041095,120]
[421592194,1777938676000,-1227.72,0.00041095,120]
[421592196,1777938676000,-500.0,0.00041095,120]
[421592197,1777938676000,-546.18,0.00041095,120]
[421592195,1777938676000,-160.82672047,0.00041095,120]
[421592198,1777938676000,-500.0,0.00041095,120]
[421592199,1777938676000,-500.0,0.00041095,120]
[421592200,1777938676000,-500.0,0.00041095,120]
[421592202,1777938676000,-500.0,0.00041095,120]
[421592201,1777938676000,-2670.18,0.00041095,120]
[421592205,1777938676000,-222.21868857,0.00041095,120]
[421592204,1777938676000,-209.67597774,0.00041095,120]
[421592203,1777938676000,-500.0,0.00041095,120]
[421592206,1777938676000,-512.03521752,0.00041095,120]
[421592212,1777938676000,-500.0,0.00041095,120]
[421592215,1777938676000,-500.0,0.00041095,120]
[421592211,1777938676000,-500.0,0.00041095,120]
[421592216,1777938676000,-500.0,0.00041095,120]
[421592214,1777938676000,-418.91078861,0.00041095,120]
[421592213,1777938676000,-500.0,0.00041095,120]
[421592209,1777938676000,-516.61006717,0.00041095,120]
[421592207,1777938676000,-500.0,0.00041095,120]
[421592208,1777938676000,-285.2816747,0.00041095,14]
[421592169,1777938676000,-623.80910224,0.00041095,120]
[421592218,1777938676000,-500.0,0.00041095,120]
[421592217,1777938676000,-500.0,0.00041095,120]
[421592192,1777938676000,-500.0,0.00041095,120]
[421592188,1777938676000,-500.0,0.00041095,120]
[421592210,1777938676000,-511.48631069,0.00041095,120]
[421592185,1777938676000,-20831.24,0.00041095,120]
[421592189,1777938676000,-507.75,0.00041095,120]
[421592158,1777938676000,-500.0,0.00041095,120]
[421592162,1777938676000,-19191.44,0.00041095,120]
[421592168,1777938676000,-253.98359374,0.00041095,120]
[421592166,1777938676000,-588.88200148,0.00041095,120]
[421592164,1777938676000,-500.0,0.00041095,120]
[421592165,1777938676000,-500.0,0.00041095,120]
[421592163,1777938676000,-500.0,0.00041095,120]
[421592167,1777938676000,-500.0,0.00041095,120]
[421592170,1777938676000,-365.06886333,0.00041095,120]
[421592181,1777938676000,-556.71,0.00041095,120]
[421592175,1777938676000,-500.0,0.00041095,120]
[421592174,1777938676000,-500.0,0.00041095,120]
[421592160,1777938676000,-233.7177673,0.00041095,120]
[421592172,1777938676000,-626.2635357,0.00041095,120]
[421592171,1777938676000,-224.44380912,0.00041095,120]
[421592186,1777938676000,-320.19706219,0.00041095,120]
[421592182,1777938676000,-500.0,0.00041095,120]
[421592184,1777938676000,-500.0,0.00041095,120]
[421592193,1777938676000,-500.0,0.00041095,120]
[421592183,1777938676000,-206.03008791,0.00041095,120]
[421592187,1777938676000,-500.0,0.00041095,120]
[421592176,1777938676000,-696.58,0.00041095,120]
[421592177,1777938676000,-500.0,0.00041095,120]